Cogmind - Beta 16 --- EXPLORER MODE // 2026.01.01 @ 09:10:04 Player: K.K.Y. Result: Destroyed by PN-MW1(R) with Subdweller Beam Cannon Performance ------------- Evolutions (0) 0 Regions Visited (3) 600 Robots Destroyed (46) 230 Value Destroyed (867) 867 Prototype IDs (1) 20 Alien Tech Used (0) 0 Bonus (0) 0 TOTAL SCORE: 1717 Bonus ------- None Cogmind --------- Core Integrity 0/250 Matter 265/300 Energy 169/170 System Corruption 0% Temperature Cool (9) Movement Core (400) Ox7 Location -10/Subcaves Parts ------- > --- POWER (1) -------- Makeshift Power Source > --- PROPULSION (2) --- (None) > --- UTILITY (3) ------ Medium Storage Unit Structural Scanner > --- WEAPON (2) ------- Flak Cannon Mining Laser > --- INVENTORY (10) --- Huge Storage Unit Machine Analyzer Hacking Suite High-powered Tractor Beam Splice Drone Bay (6/6) Beam Cannon Beam Cannon Flak Cannon Improved Datajack Makeshift Sword Peak State ------------ > --- POWER ------------ Ion Engine > --- PROPULSION ------- Light Treads Light Treads > --- UTILITY ---------- Improved Heat Sink Medium Storage Unit Splice Drone Bay > --- WEAPON ----------- Beam Cannon Beam Cannon > --- INVENTORY -------- Huge Storage Unit Weight Redist. System Improved Sensor Array Core Shielding Hacking Suite Flak Cannon Flak Cannon Improved Datajack Mining Laser [Rating: 18] Favorites ----------- Power Ion Engine Engine Ion Engine Propulsion Light Treads Treads Light Treads Utility Medium Storage Unit Device Improved Heat Sink Storage Medium Storage Unit Protection Core Shielding Weapon Beam Cannon Energy Gun Medium Laser Energy Cannon Beam Cannon Ballistic Cannon Assault Cannon Special Weapon Mining Laser Build | -11 -10 -10 -10 ------- Run | Yrd Mat Min Sub Slots Evolved 1 | . 1 . . Power . | . . . . Propulsion . | . . . . Utility 1 | . 1 . . Weapon . | . . . . Parts Attached 21 | 6 7 2 6 Power 3 | 1 1 . 1 Engine 3 | 1 1 . 1 Core . | . . . . Reactor . | . . . . Propulsion 2 | 2 . . . Treads 2 | 2 . . . Leg . | . . . . Wheel . | . . . . Hover . | . . . . Flight . | . . . . Utility 10 | 2 4 2 2 Device 8 | 1 3 2 2 Storage 1 | . 1 . . Processor . | . . . . Hackware . | . . . . Protection 1 | 1 . . . Artifact . | . . . . Weapon 6 | 1 2 . 3 Energy Gun 1 | 1 . . . Energy Cannon 2 | . 2 . . Ballistic Gun . | . . . . Ballistic Cannon 2 | . . . 2 Launcher . | . . . . Special Weapon 1 | . . . 1 Impact Weapon . | . . . . Slashing Weapon . | . . . . Piercing Weapon . | . . . . Special Melee Weapon . | . . . . Unidentified Prototypes 1 | . . 1 . Parts Lost 4 | . . . 4 Power . | . . . . Propulsion 2 | . . . 2 Utility 1 | . . . 1 Weapon 1 | . . . 1 Highest Loss Streak 3 | . . . 3 To Critical Strikes . | . . . . Average Backups 8 | 1 5 9 9 Power . | . . . . Propulsion . | . . . . Utility 4 | . 3 4 5 Weapon 3 | . 1 3 3 Tool/Special . | . . . . Unused Backups 11 | . . 5 6 Power . | . . . . Propulsion . | . . . . Utility 5 | . . 1 4 Weapon 4 | . . 3 1 Tool/Special 2 | . . 1 1 Average Slot Usage (%) 92 | . 96 97 88 Engine 12 | . 12 12 12 Treads 22 | . 25 25 18 Device 20 | . 21 22 18 Storage 10 | . 5 12 12 Protection 1 | . 6 . . Energy Cannon 18 | . 23 25 12 Ballistic Cannon 5 | . . . 11 Peak Build Rating 18 | 6 12 18 18 Average Rating 13 | 5 9 14 14 On Entrance 9 | . 6 12 18 Avg Prop Armor Cover (%) . | . . . . Naked Turns . | . . . . Heaviest Build 30 | 8 22 30 30 Greatest Support 46 | 40 46 46 40 Greatest Overweight (x) 1 | . . . 1 Average Overweight (x) . | . . . . Largest Inventory Capacity 10 | 5 10 10 10 Average Capacity 9 | 5 7 10 10 Most Carried 10 | 5 9 10 10 Average Carried 8 | 1 5 9 9 Final Capacity 10 | 5 10 10 10 Final Carried 10 | 2 9 10 10 Class Distribution -------------------- 100% | Hacker-Mutant Dominant Class ---------------- Hacker-Mutant | -10/Materials Hacker-Mutant | -10/Mines Hacker-Mutant | -10/Subcaves Resources | -11 -10 -10 -10 ----------- Run | Yrd Mat Min Sub Matter Collected 683 | 164 166 20 333 Remotely . | . . . . Salvage Created 1432 | 158 422 517 335 Parts 86 | 5 28 38 15 Haulers Intercepted 2 | . 2 . . Recyclers Shooed . | . . . . Parts Field Recycled . | . . . . Retrieved Matter . | . . . . Parts Self-Destructed . | . . . . Prevented . | . . . . Parts Restored . | . . . . Kills | -11 -10 -10 -10 ------- Run | Yrd Mat Min Sub Combat Hostiles Destroyed 25 | . 8 6 11 Cannons 25 | . 8 6 11 Classes Destroyed 10 | 2 5 1 2 Worker 3 | . 1 2 . Builder 7 | . . 7 . Tunneler 4 | 3 . 1 . Hauler 2 | . 2 . . Recycler 2 | 1 . 1 . Watcher 3 | . 3 . . Swarmer 8 | . 4 4 . Grunt 6 | . 4 2 . Artisan 1 | . . . 1 Subdweller 11 | . . . 11 Best Kill Streak 4 | 3 4 4 2 Combat Bots Only 3 | . 3 2 2 Max Kills in Single Turn 2 | 1 2 2 1 Gunslinging . | . . . . Exploded . | . . . . Melee . | . . . . Uniques/NPCs Destroyed . | . . . . Combat | -11 -10 -10 -10 -------- Run | Yrd Mat Min Sub Hostile Shots Fired 109 | . 12 25 72 Missed 26 | . 6 8 12 Hits 83 | . 6 17 60 Projectile 83 | . 6 17 60 Critical Strikes 4 | . . . 4 Damage Taken 1015 | . 90 85 840 Core 256 | . 11 19 226 Absorbed by Shields . | . . . . Ignored by Resistances 615 | . 56 64 495 Core Remaining (%) 100 | 100 . . . Volleys Fired 128 | 12 17 32 67 Largest 2 | 1 2 2 2 Hottest 137 | 50 120 120 137 Shots Fired 241 | 12 34 64 131 Gun 12 | 12 . . . Cannon 227 | . 34 64 129 Launcher . | . . . . Special 2 | . . . 2 Kinetic 64 | . . . 64 Thermal 177 | 12 34 64 67 Explosive . | . . . . Electromagnetic . | . . . . Robot Hit Streak 30 | 10 12 19 30 Robot Miss Streak 4 | 1 1 4 1 Penetration Max . | . . . . Secondary Targets . | . . . . Shots Hit Robots 166 | 11 24 48 83 Core Hits 54 | 5 14 16 19 Critical Kills 1 | . 1 . . Critical Parts Destroyed . | . . . . Critical Strikes 3 | 2 1 . . Burn 2 | 2 . . . Meltdown 1 | . 1 . . Melee Attacks . | . . . . Impact . | . . . . Slashing . | . . . . Piercing . | . . . . Sneak Attacks . | . . . . Combat Hostiles . | . . . . Follow-up Attacks . | . . . . Damage Inflicted 2953 | 139 436 874 1504 Guns 139 | 139 . . . Cannons 2814 | . 436 874 1504 Explosions . | . . . . Melee . | . . . . Ramming . | . . . . Kinetic 910 | . . . 910 Thermal 2043 | 139 436 874 594 Explosive . | . . . . Electromagnetic . | . . . . Impact . | . . . . Slashing . | . . . . Piercing . | . . . . Highest Corruption . | . . . . Average Corruption . | . . . . Corruption Purged . | . . . . Corruption Blocked . | . . . . Overload Shots . | . . . . Overflow Damage 78 | . . 77 1 Projectiles 78 | . . 77 1 Explosions . | . . . . Melee . | . . . . Knockbacks 8 | . . . 8 Impact . | . . . . Kinetic 8 | . . . 8 Secondary . | . . . . Self-Inflicted Damage . | . . . . Shots . | . . . . Rammed . | . . . . Targets Rammed . | . . . . Kicked . | . . . . Crushed . | . . . . Highest Temperature 198 | 100 198 198 6 Average Temperature 51 | 44 54 56 3 Received Heat Transfer 177 | . 30 48 99 Siege Activations . | . . . . Martial Activations . | . . . . Shielding Activations . | . . . . Robots Disrupted . | . . . . Combat Hostiles . | . . . . Robots Corrupted . | . . . . Combat Hostiles . | . . . . Parts Fried . | . . . . Impact Corruptions . | . . . . Robots Melted 1 | . 1 . . Combat Hostiles . | . . . . Parts Melted 7 | 2 1 4 . Heat Transferred 4588 | 555 925 1850 1258 Parts Sabotaged . | . . . . Parts Stolen . | . . . . Parts Stripped . | . . . . Power Chain Reactions . | . . . . Alert | -11 -10 -10 -10 ------- Run | Yrd Mat Min Sub Maximum Alert Level . | . . . . Low Security (%) 100 | 100 100 100 . Level 1 . | . . . . Level 2 . | . . . . Level 3 . | . . . . Level 4 . | . . . . Level 5 . | . . . . High Security . | . . . . Max Security . | . . . . Peak Influence 65 | 10 55 65 . Initial . | . . . . Average 5 | . 7 4 . Influence Increases 492 | 20 247 225 . Destroy 0b10 Robot/C 280 | . 160 120 . Destroy 0b10 Robot/NC 110 | 20 30 60 . Destroy Leader 70 | . 40 30 . Successful Hack 17 | . 17 . . Lose Combat Pursuer 15 | . . 15 . Influence Decreases 492 | 20 247 225 . Time Decay 492 | 20 247 225 . Squads Dispatched 1 | . . 1 . Investigation 1 | . . 1 . Extermination . | . . . . Reinforcement . | . . . . Assault . | . . . . Garrison . | . . . . Intercept . | . . . . Searches Triggered . | . . . . Construction Impeded . | . . . . Haulers Reinforced . | . . . . Active Scanning Responses . | . . . . Cargo Convoy Interrupts . | . . . . Stealth | -11 -10 -10 -10 --------- Run | Yrd Mat Min Sub Distress Signals 2 | . 2 . . Communications Jammed . | . . . . Distress Signals . | . . . . Times Spotted 35 | . 15 7 13 Peak Tracking Total 5 | . 5 3 2 Tactical Retreats 2 | . 1 1 . ECM-based Alert Blocks 3 | . 3 . . Traps | -11 -10 -10 -10 ------- Run | Yrd Mat Min Sub Traps Triggered 2 | . 2 . . Indirectly . | . . . . Trap Hack Attempts . | . . . . Triggered . | . . . . Disarmed . | . . . . Reprogrammed . | . . . . Reused . | . . . . Traps Extracted . | . . . . Installed . | . . . . Triggered . | . . . . Machines | -11 -10 -10 -10 ---------- Run | Yrd Mat Min Sub Machines Disabled . | . . . . Max in Single Turn . | . . . . Machines Repaired . | . . . . Machines Dismantled . | . . . . Machines Sabotaged . | . . . . Overloaded Fab Kills . | . . . . Hacking | -11 -10 -10 -10 --------- Run | Yrd Mat Min Sub Machines Accessed 9 | . 6 2 1 Terminals 6 | . 6 . . Fabricators . | . . . . Repair Stations . | . . . . Recycling Units . | . . . . Scanalyzers . | . . . . Garrison Access . | . . . . Total Hacks 21 | . 15 2 4 Successful 17 | . 11 2 4 Failed 4 | . 4 . . Catastrophic . | . . . . Database Lockouts . | . . . . Manual 8 | . 8 . . Terminals 15 | . 15 . . Fabricators . | . . . . Repair Stations . | . . . . Recycling Units . | . . . . Scanalyzers . | . . . . Garrison Access . | . . . . Terminal Hacks 14 | . 8 2 4 Record 4 | . . . 4 Robot Analysis 1 | . 1 . . Open Door 2 | . . 2 . Alert Level 1 | . 1 . . Locate Traps 4 | . 4 . . Security Status 1 | . 1 . . Registered Components 1 | . 1 . . Fabricator Hacks . | . . . . Repair Station Hacks . | . . . . Recycling Unit Hacks . | . . . . Scanalyzer . | . . . . Garrison Access Hacks . | . . . . Unauthorized Hacks 3 | . 3 . . Terminals 3 | . 3 . . Botnet 3 | . 3 . . Fabricators . | . . . . Repair Stations . | . . . . Recycling Units . | . . . . Scanalyzers . | . . . . Garrison Access . | . . . . Data Cores Recovered . | . . . . Used . | . . . . Hacking Detections 4 | . 4 . . Full Trace Events 1 | . 1 . . Feedback Events . | . . . . Feedback Blocked . | . . . . Robot Schematics Acquired . | . . . . Robots Built . | . . . . Authchips . | . . . . Time . | . . . . Total Robot Build Rating . | . . . . Part Schematics Acquired . | . . . . Parts Built . | . . . . Authchips . | . . . . Time . | . . . . Total Part Build Rating . | . . . . Part Studies Acquired . | . . . . Parts Repaired . | . . . . Time . | . . . . Parts Recycled . | . . . . Recycled Matter . | . . . . Retrieved Matter . | . . . . Retrieved Components . | . . . . Parts Scanalyzed . | . . . . Part Schematics Acquired . | . . . . Parts Damaged . | . . . . Bothacking | -11 -10 -10 -10 ------------ Run | Yrd Mat Min Sub Used RIF Installer . | . . . . Robots Hacked . | . . . . Non-combat . | . . . . Combat . | . . . . Robot Hacks Applied . | . . . . Relay Couplers Released . | . . . . Fabnet Peak Effective % . | . . . . Robots Rewired . | . . . . Allies Hacked . | . . . . Hacks Repelled . | . . . . Allies | -11 -10 -10 -10 -------- Run | Yrd Mat Min Sub Total Allies . | . . . . Largest Group . | . . . . Highest-Rated Group . | . . . . Highest-Rated Ally . | . . . . Total Orders . | . . . . Ally Attacks . | . . . . Total Damage . | . . . . Kills . | . . . . Allies Corrupted . | . . . . Allies Melted . | . . . . Intel | -11 -10 -10 -10 ------- Run | Yrd Mat Min Sub Active Infowar (turns) 3276 | 200 608 1 2467 Sensors 1295 | . . . 1295 Terrain 1 | . . 1 . Structural 2467 | . . . 2467 ECM 808 | 200 608 . . Robot Analysis Total 1 | . 1 . . Derelict Logs Recovered 2 | . . 1 1 Drone Launches . | . . . . Drone Recoveries . | . . . . Exploration | -11 -10 -10 -10 ------------- Run | Yrd Mat Min Sub Turns Passed 5528 | 217 1063 1755 2493 Spaces Moved 2317 | 116 611 894 696 Core 21 | 21 . . . Treads 2296 | 95 611 894 696 Legs . | . . . . Wheels . | . . . . Hover . | . . . . Flight . | . . . . Fastest Speed 50 | 50 160 160 160 Average Speed 165 | 140 160 160 182 Slowest Speed 240 | 160 160 160 240 Overloaded Moves . | . . . . Propulsion Burnouts . | . . . . Robots Hopped . | . . . . Potential Cave-ins . | . . . . Cave-ins Triggered . | . . . . Exploration Rate (%) 62 | 5 93 100 51 Regions Visited 3 Branch Regions 2 Pre-discovered Areas 1 | . . . 1 Known Exits Taken 3 | 1 1 1 . Unknown Exits Taken . | . . . . Scrap Searched 2 | . . . 2 Spaces Dug . | . . . . Terrain Destroyed . | . . . . Melee . | . . . . Projectile . | . . . . AOE . | . . . . Terrain Rammed . | . . . . Walls Destroyed . | . . . . Machines Disabled . | . . . . Actions | -11 -10 -10 -10 --------- Run | Yrd Mat Min Sub Total 3764 | 158 664 1161 1781 Wait 1255 | 18 12 216 1009 Move 2314 | 115 610 893 696 Hop . | . . . . Pick Up 30 | 7 13 8 2 Fast Attach 3 | 1 . 2 . Attach 10 | 5 4 . 1 Detach 2 | . 1 1 . Swap 8 | . 3 . 5 Drop 14 | . 4 9 1 Fire 128 | 12 17 32 67 Melee . | . . . . Ram . | . . . . Kick . | . . . . Crush . | . . . . Escape Stasis . | . . . . Rewire . | . . . . Trap . | . . . . Miscellaneous . | . . . . Route ------- -11/Scrapyard -10/Materials (discovered 6 exits: *Mat x3 / *Min x2 / *Sub) -10/Mines (discovered 4 exits: *Mat x2 / *Exi / *Sub) -10/Subcaves (discovered 1 exit: *Mat) History --------- Turn | Location | Event 3 | -11/Scrapyard | Identified exit to Materials 3 | -11/Scrapyard | Discovered exit to Materials (range 15) 218 | -11/Scrapyard | Entered Materials 218 | -10/Materials | Evolved 1 slot: Utility x1 304 | -10/Materials | Build established: Hacker-Mutant 412 | -10/Materials | Identified exit to Mines 412 | -10/Materials | Discovered exit to Mines (range 9) 467 | -10/Materials | Identified exit to Materials 467 | -10/Materials | Discovered exit to Materials (range 11) 611 | -10/Materials | Discovered exit to Mines (range 14) 780 | -10/Materials | Discovered exit to Materials (range 16) 1046 | -10/Materials | Identified exit to Subcaves 1046 | -10/Materials | Discovered exit to Subcaves (range 9) 1236 | -10/Materials | Discovered exit to Materials (range 13) 1281 | -10/Materials | Entered Mines 1328 | -10/Mines | Learned location of 1 exit from Materials 1524 | -10/Mines | Discovered exit to Materials (range 11) 1669 | -10/Mines | Discovered exit to Materials (range 8) 1878 | -10/Mines | Deemed a non-threat by the Exiles lab entrance 1878 | -10/Mines | Identified exit to Exiles 1878 | -10/Mines | Discovered exit to Exiles (range 5) 2036 | -10/Mines | Found the Drone Emporium 2041 | -10/Mines | Found Prototype Device 2041 | -10/Mines | Identified Splice Drone Bay 2093 | -10/Mines | Met a Derelict shopkeep closing up shop 2240 | -10/Mines | Discovered exit to Subcaves (range 10) 3036 | -10/Mines | Entered Subcaves 3037 | -10/Subcaves | Approached by a straggling Scientist 3475 | -10/Subcaves | Identified exit to Materials 3475 | -10/Subcaves | Discovered exit to Materials (range 13) 4057 | -10/Subcaves | Ambushed by Subdwellers from Twisted Machinery 4061 | -10/Subcaves | Core integrity fell below 50% 4212 | -10/Subcaves | A swath of the cavern ceiling suddenly collapsed 4354 | -10/Subcaves | Core integrity fell below 20% 4390 | -10/Subcaves | Lost 3 parts (1n1u1w) 5191 | -10/Subcaves | Visited Clippyterm 5194 | -10/Subcaves | Learned location of Zion (-6) 5203 | -10/Subcaves | Learned Factory fabricator intel 5356 | -10/Subcaves | Disturbed a concealed Subdweller 5410 | -10/Subcaves | Shifting Twisted Machinery released Sub. Power Source 5468 | -10/Subcaves | Shifting Twisted Machinery released Sub. Monowheel 5468 | -10/Subcaves | Shifting Twisted Machinery released Sub. Power Source 5468 | -10/Subcaves | Shifting Twisted Machinery released Mak. Sword 5529 | -10/Subcaves | Destroyed by PN-MW1(R) with Subdweller Beam Cannon Last Messages --------------- 05353_ Acquired 28 matter. 05355_ Searching scrap... 05355_ Found Sub. Beam Cannon. 05355_ Found Sub. Monowheel. 05355_ Found 38 Matter. 05356_ MY-PEI(R) angrily emerges from the Twisted Machinery. 05362_ MY-PEI(R) destroyed. 05365_ Acquired 12 matter. Sub. Power Source falls loose from the Twisted Machinery. Sub. Monowheel falls loose from the Twisted Machinery. Sub. Power Source falls loose from the Twisted Machinery. Mak. Sword falls loose from the Twisted Machinery. 05490_ Acquired Mak. Sword. 05526_ MU-62M(R) knocked back. 05529_ Lgt. Treads destroyed. Map ----- +----------------------------------------------------+ | | | ?????????????????????????????????????????????????? | | ?????????????????????????????????????????????????? | | ?????????????????????????????????????????????????? | | ?????????????????????????????????????????????????? | | ?????????????????????????????????????????????????? | | ?????????????????????????????????????????????????? | | ?????????????????????????????????????????????????? | | ?????????????????????????????????????????????????? | | ?????????????????????????????????????????????????? | | ?????????????????????????????????????????????????? | | ?????????????????????????????????????????????????? | | ?????????????????????????????????????????????????? | | ?????????????????????????????????????????????????? | | ???????????????????#########?????????????????????? | | #?????#######?????###########????????????????????? | | ##????##########??###"""" ####???????????????????? | | ###??### ######?## " "= ###???????????????????? | | ######## ""###### " " "##???????????????????? | | ###### "" ##### "" " * ##???????????????????? | | #### ""* " ### "#####?????????????????? | | ## "" ## "####"?????????????????? | | "" ## ### """"" ?????????????????? | | ## ######### ### """"" ?????????????????? | | ###### ############ "##"# ?????????????????? | | ############?????## # @##### ?????????????????? | | ????#####????????##### R###### ?????????????????? | | ?????????????????######R ##?????????????????????? | | ????????????????????## ##?????????????????????? | | ????????????????????### ###?????????????????????? | | ????????????????????## ##?????????????????????? | | ????????????????????### ??????????????????????? | | ????????????????????### ?????????????????????? | | ?????????????????????# ?????????????????????? | | ?????????????????????? ????????????????????? | | ?????????????????????? ???????????????????? | | ?????????????????????? ???????????????????? | | ????????????????????? ????????????????????? | | ????????????????????? " ?????????????????????? | | ????????????????????? """???????????????????????? | | ?????????????????????? ??????????????????????????? | | ?????????????????????????????????????????????????? | | ?????????????????????????????????????????????????? | | ?????????????????????????????????????????????????? | | ?????????????????????????????????????????????????? | | ?????????????????????????????????????????????????? | | ?????????????????????????????????????????????????? | | ?????????????????????????????????????????????????? | | ?????????????????????????????????????????????????? | | ?????????????????????????????????????????????????? | +----------------------------------------------------+ Best States ------------- Heat Dissipation 39 Energy Generation 15 Energy Capacity 250 Matter Stores 300 Matter Capacity 300 Sight Range 16 Robot Scan Range 15 Terrain Scan Density 10 ECM Strength 1 Additional Mass Support 6 Resistance: KI 35 Resistance: TH 35 Resistance: EX 35 Resistance: EM 35 Resistance: I 35 Resistance: S 35 Resistance: P 35 Core Shielding 20 Evasion (%) 50 Recoil Reduction 2 Offensive Hacking 20 Item Schematics ----------------- None Robot Schematics ------------------ None Fabricated ------------ Nothing Repaired ---------- Nothing Studied --------- None Alien Tech Used ----------------- None Achievements -------------- None Challenges ------------ None Game ------ Seed PlatingInsulatedCarapace Manual? 0 Play Time 00:18:54 Cumulative 234.7 hours Start 2026.01.01 @ 08:52:59 End 2026.01.01 @ 09:10:04 Sessions 1 Manual Loads 0 Difficulty Explorer Special Mode None Game No. 370 Rogue 0 Adventurer 0 Explorer 370 Win Type - Total 0 Types 0/0/0/0/0/0/0/0/0/0 Lore% 71 Gallery% 68 Achievement% 54 Wizard Run 0 Options --------- Layout 1 ASCII 0 Keyboard 0 Movement Mouse Keybinds 0 Fullscreen 1 Font 24/Smallcaps Map View 50x35 Zoom Use 0% Tactical HUD 1 Map Filters NONE Filters NONE Steam 1 RUN: 83840888-99c0-40f8-b452-8e9bab1ea001